[Event "*** SCC Grand Prix: Titled Tuesday Blitz"]
[Site "Chess.com"]
[Date "2020.08.11"]
[Round "4"]
[White "Kislov_Oleg"]
[Black "Vesper2018"]
[Result "1-0"]
[WhiteElo "2381"]
[BlackElo "2558"]
[TimeControl "180+1"]
[EndTime "10:39:53 PDT"]
[Termination "Kislov_Oleg won on time"]

1. e4 {[%clk 0:03:00.9]} 1... c5 {[%clk 0:02:59.9]} 2. Nf3 {[%clk 0:02:58.5]}
2... d6 {[%clk 0:03:00.2]} 3. c3 {[%clk 0:02:58.4]} 3... Nf6 {[%clk 0:02:58.9]}
4. Be2 {[%clk 0:02:58.3]} 4... Bd7 {[%clk 0:02:58.7]} 5. Qc2 {[%clk 0:02:57.1]}
5... Bc6 {[%clk 0:02:53.5]} 6. d3 {[%clk 0:02:49.6]} 6... e5 {[%clk 0:02:52.8]}
7. O-O {[%clk 0:02:47.8]} 7... Be7 {[%clk 0:02:52.7]} 8. Nbd2 {[%clk 0:02:37.5]}
8... O-O {[%clk 0:02:52.3]} 9. d4 {[%clk 0:02:37.3]} 9... exd4 {[%clk 0:02:40]}
10. cxd4 {[%clk 0:02:36.4]} 10... b6 {[%clk 0:02:40.3]} 11. d5 {[%clk
0:02:32.8]} 11... Bb7 {[%clk 0:02:34.7]} 12. a4 {[%clk 0:02:31.3]} 12... Nbd7
{[%clk 0:02:32.8]} 13. Nc4 {[%clk 0:02:30.3]} 13... a6 {[%clk 0:02:17.9]} 14.
Bf4 {[%clk 0:02:19.9]} 14... Ne8 {[%clk 0:02:16.1]} 15. b3 {[%clk 0:01:50.8]}
15... f6 {[%clk 0:01:30.3]} 16. Bg3 {[%clk 0:01:37.7]} 16... b5 {[%clk
0:01:24.3]} 17. Na3 {[%clk 0:01:35.7]} 17... b4 {[%clk 0:01:20.4]} 18. Nc4
{[%clk 0:01:35.4]} 18... Ne5 {[%clk 0:01:20.6]} 19. Nh4 {[%clk 0:01:24.5]} 19...
g6 {[%clk 0:01:16.1]} 20. f4 {[%clk 0:01:21.6]} 20... Nxc4 {[%clk 0:01:15.9]}
21. Bxc4 {[%clk 0:01:22.5]} 21... f5 {[%clk 0:01:16]} 22. Nf3 {[%clk 0:01:18.2]}
22... fxe4 {[%clk 0:01:14.9]} 23. Qxe4 {[%clk 0:01:17.1]} 23... Bc8 {[%clk
0:01:14.5]} 24. Rae1 {[%clk 0:01:09.3]} 24... Bf6 {[%clk 0:01:13.7]} 25. Ng5
{[%clk 0:01:03.5]} 25... Bf5 {[%clk 0:01:07.8]} 26. Qe2 {[%clk 0:00:59]} 26...
Bxg5 {[%clk 0:01:03.3]} 27. fxg5 {[%clk 0:00:58.6]} 27... Qxg5 {[%clk
0:01:02.6]} 28. Bxa6 {[%clk 0:00:48.3]} 28... Nc7 {[%clk 0:01:01.6]} 29. Bc4
{[%clk 0:00:41.5]} 29... Qf6 {[%clk 0:00:54.3]} 30. Qd2 {[%clk 0:00:34.6]} 30...
Rfd8 {[%clk 0:00:45.5]} 31. Qf4 {[%clk 0:00:33.5]} 31... Rd7 {[%clk 0:00:33]}
32. Bh4 {[%clk 0:00:33.1]} 32... Qc3 {[%clk 0:00:22.5]} 33. g4 {[%clk 0:00:23]}
33... Bc2 {[%clk 0:00:11]} 34. Bf6 {[%clk 0:00:21.6]} 34... Qh3 {[%clk
0:00:05.6]} 35. Re3 {[%clk 0:00:17.8]} 35... Qxf1+ {[%clk 0:00:02]} 36. Qxf1
{[%clk 0:00:14.7]} 36... Rf7 {[%clk 0:00:01.6]} 37. g5 {[%clk 0:00:12.2]} 37...
Bf5 {[%clk 0:00:01.6]} 38. Qe1 {[%clk 0:00:10.8]} 38... h6 {[%clk 0:00:01.6]}
39. Re7 {[%clk 0:00:10.8]} 39... hxg5 {[%clk 0:00:01.2]} 40. Rxf7 {[%clk
0:00:10.7]} 40... Kxf7 {[%clk 0:00:01.7]} 41. Qe7+ {[%clk 0:00:11.4]} 1-0

[Event "*** SCC Grand Prix: Titled Tuesday Blitz"]
[Site "Chess.com"]
[Date "2020.08.11"]
[Round "4"]
[White "Korona_91"]
[Black "RusPakhom"]
[Result "1-0"]
[WhiteElo "2492"]
[BlackElo "2291"]
[TimeControl "180+1"]
[EndTime "10:39:53 PDT"]
[Termination "Korona_91 won by checkmate"]

1. e4 {[%clk 0:03:00.9]} 1... e5 {[%clk 0:02:59.3]} 2. Nf3 {[%clk 0:03:00.4]}
2... Nf6 {[%clk 0:02:59.7]} 3. Nxe5 {[%clk 0:02:58.2]} 3... d6 {[%clk
0:03:00.1]} 4. Nf3 {[%clk 0:02:58.6]} 4... Nxe4 {[%clk 0:03:00.6]} 5. Bd3 {[%clk
0:02:59.1]} 5... Nc5 {[%clk 0:02:59.7]} 6. Be2 {[%clk 0:02:58.5]} 6... Be7
{[%clk 0:02:59.4]} 7. O-O {[%clk 0:02:55.8]} 7... d5 {[%clk 0:02:59]} 8. b3
{[%clk 0:02:52.2]} 8... Bf6 {[%clk 0:02:57.9]} 9. d4 {[%clk 0:02:51.3]} 9... Ne4
{[%clk 0:02:53.9]} 10. Ba3 {[%clk 0:02:47.7]} 10... Be7 {[%clk 0:02:49.7]} 11.
Bb2 {[%clk 0:02:44.3]} 11... O-O {[%clk 0:02:49]} 12. c4 {[%clk 0:02:44.2]}
12... c6 {[%clk 0:02:48.5]} 13. Nc3 {[%clk 0:02:40.7]} 13... Bf5 {[%clk
0:02:45.7]} 14. Ne5 {[%clk 0:02:32.4]} 14... Nd7 {[%clk 0:02:39.2]} 15. f4
{[%clk 0:02:27.9]} 15... f6 {[%clk 0:02:18.3]} 16. Nf3 {[%clk 0:02:11.6]} 16...
Nxc3 {[%clk 0:02:05.8]} 17. Bxc3 {[%clk 0:02:11.1]} 17... Re8 {[%clk 0:02:03]}
18. Nh4 {[%clk 0:02:05.5]} 18... Be4 {[%clk 0:02:02.3]} 19. Bh5 {[%clk
0:02:04.1]} 19... g6 {[%clk 0:01:57]} 20. Be2 {[%clk 0:02:03.9]} 20... f5 {[%clk
0:01:52.9]} 21. Nf3 {[%clk 0:02:03.5]} 21... Bxf3 {[%clk 0:01:53]} 22. Bxf3
{[%clk 0:02:00.2]} 22... Nf6 {[%clk 0:01:52.9]} 23. c5 {[%clk 0:01:58.5]} 23...
Bf8 {[%clk 0:01:50.8]} 24. b4 {[%clk 0:01:57.1]} 24... Bg7 {[%clk 0:01:50.1]}
25. a4 {[%clk 0:01:57]} 25... Ne4 {[%clk 0:01:49.9]} 26. Bb2 {[%clk 0:01:51.6]}
26... Qc7 {[%clk 0:01:49.7]} 27. Qc1 {[%clk 0:01:46.2]} 27... b6 {[%clk
0:01:45.9]} 28. g3 {[%clk 0:01:33.2]} 28... a5 {[%clk 0:01:30.6]} 29. b5 {[%clk
0:01:27.5]} 29... cxb5 {[%clk 0:01:24.5]} 30. axb5 {[%clk 0:01:24.4]} 30... bxc5
{[%clk 0:01:21.8]} 31. dxc5 {[%clk 0:01:18.7]} 31... Bxb2 {[%clk 0:01:21.1]} 32.
Qxb2 {[%clk 0:01:19.3]} 32... Qxc5+ {[%clk 0:01:21.1]} 33. Kg2 {[%clk
0:01:17.8]} 33... Reb8 {[%clk 0:00:51.8]} 34. Rab1 {[%clk 0:01:12.7]} 34... a4
{[%clk 0:00:47.6]} 35. Rfc1 {[%clk 0:01:11.2]} 35... Qe3 {[%clk 0:00:42.3]} 36.
Rc7 {[%clk 0:00:57.1]} 36... Qd2+ {[%clk 0:00:15.1]} 37. Qxd2 {[%clk 0:00:54.5]}
37... Nxd2 {[%clk 0:00:16]} 38. Bxd5+ {[%clk 0:00:54.8]} 38... Kh8 {[%clk
0:00:16.3]} 39. Rd1 {[%clk 0:00:48.1]} 39... Ra5 {[%clk 0:00:13.5]} 40. Rxd2
{[%clk 0:00:43.2]} 40... Raxb5 {[%clk 0:00:13.7]} 41. Bc4 {[%clk 0:00:37]} 41...
Rb2 {[%clk 0:00:12.5]} 42. Rxb2 {[%clk 0:00:32.6]} 42... Rxb2+ {[%clk
0:00:13.4]} 43. Kg1 {[%clk 0:00:32.7]} 43... Rc2 {[%clk 0:00:13.6]} 44. Rc8+
{[%clk 0:00:30.6]} 44... Kg7 {[%clk 0:00:13.4]} 45. Be6 {[%clk 0:00:29.9]} 45...
Rb2 {[%clk 0:00:10.4]} 46. Rc7+ {[%clk 0:00:27.9]} 46... Kf6 {[%clk 0:00:09.4]}
47. Bd5 {[%clk 0:00:26.8]} 47... a3 {[%clk 0:00:09.5]} 48. Rf7# {[%clk
0:00:25.9]} 1-0

[Event "*** SCC Grand Prix: Titled Tuesday Blitz"]
[Site "Chess.com"]
[Date "2020.08.11"]
[Round "4"]
[White "Rubinstein_Akiba"]
[Black "VladaSviridova"]
[Result "1-0"]
[WhiteElo "2444"]
[BlackElo "2243"]
[TimeControl "180+1"]
[EndTime "10:39:53 PDT"]
[Termination "Rubinstein_Akiba won by resignation"]

1. e4 {[%clk 0:03:00.9]} 1... e6 {[%clk 0:02:59.9]} 2. d4 {[%clk 0:02:59.6]}
2... d5 {[%clk 0:03:00]} 3. Bd3 {[%clk 0:02:59.9]} 3... dxe4 {[%clk 0:02:59.7]}
4. Bxe4 {[%clk 0:03:00.8]} 4... Nf6 {[%clk 0:03:00.1]} 5. Bf3 {[%clk 0:03:00.7]}
5... c5 {[%clk 0:03:00.3]} 6. Ne2 {[%clk 0:02:58.2]} 6... Be7 {[%clk 0:03:00.3]}
7. Be3 {[%clk 0:02:56.4]} 7... cxd4 {[%clk 0:02:49.2]} 8. Nxd4 {[%clk
0:02:51.5]} 8... O-O {[%clk 0:02:45.3]} 9. O-O {[%clk 0:02:49.9]} 9... a6 {[%clk
0:02:42.6]} 10. Nc3 {[%clk 0:02:41.5]} 10... Qc7 {[%clk 0:02:31.5]} 11. Qe2
{[%clk 0:02:32.9]} 11... e5 {[%clk 0:02:15.4]} 12. Nb3 {[%clk 0:02:24.8]} 12...
Be6 {[%clk 0:02:15.2]} 13. Rfd1 {[%clk 0:02:18.4]} 13... Nc6 {[%clk 0:02:04.9]}
14. Bg5 {[%clk 0:02:09.5]} 14... Bxb3 {[%clk 0:01:33.9]} 15. cxb3 {[%clk
0:00:47.2]} 15... Nd4 {[%clk 0:01:33.2]} 16. Qd3 {[%clk 0:00:46.5]} 16... Rad8
{[%clk 0:01:12.1]} 17. Bxf6 {[%clk 0:00:35.1]} 17... Bxf6 {[%clk 0:01:10.6]} 18.
Nd5 {[%clk 0:00:33.9]} 18... Nxf3+ {[%clk 0:00:42.9]} 19. Qxf3 {[%clk 0:00:30]}
19... Qc6 {[%clk 0:00:40.2]} 20. Rac1 {[%clk 0:00:23]} 20... Qe6 {[%clk
0:00:38.3]} 21. Nxf6+ {[%clk 0:00:19.7]} 21... Qxf6 {[%clk 0:00:38.3]} 22. Qxb7
{[%clk 0:00:19.8]} 22... g6 {[%clk 0:00:29.1]} 23. Rd7 {[%clk 0:00:19.1]} 23...
Rxd7 {[%clk 0:00:26.1]} 24. Qxd7 {[%clk 0:00:20]} 24... e4 {[%clk 0:00:26.3]}
25. Qd2 {[%clk 0:00:18.9]} 25... Rd8 {[%clk 0:00:26.1]} 26. Qe2 {[%clk
0:00:19.5]} 26... Rd4 {[%clk 0:00:24.1]} 27. g3 {[%clk 0:00:17.8]} 27... Qd6
{[%clk 0:00:22.5]} 28. Rc4 {[%clk 0:00:14.1]} 28... f5 {[%clk 0:00:16]} 29. Rxd4
{[%clk 0:00:12.4]} 29... Qxd4 {[%clk 0:00:16.1]} 30. Qc4+ {[%clk 0:00:12.2]}
30... Qxc4 {[%clk 0:00:15.1]} 31. bxc4 {[%clk 0:00:13.1]} 31... Kf7 {[%clk
0:00:14.8]} 32. Kf1 {[%clk 0:00:13.8]} 32... Ke6 {[%clk 0:00:15.2]} 33. Ke2
{[%clk 0:00:14.4]} 33... Kd6 {[%clk 0:00:15.4]} 34. b4 {[%clk 0:00:13.9]} 34...
g5 {[%clk 0:00:14.5]} 35. a4 {[%clk 0:00:12.2]} 35... f4 {[%clk 0:00:14.7]} 36.
gxf4 {[%clk 0:00:11.7]} 36... gxf4 {[%clk 0:00:15]} 37. b5 {[%clk 0:00:11.2]}
37... axb5 {[%clk 0:00:14.6]} 38. cxb5 {[%clk 0:00:12.1]} 38... Kc5 {[%clk
0:00:14.8]} 39. Kd2 {[%clk 0:00:12.5]} 39... h5 {[%clk 0:00:13.7]} 40. Kc3
{[%clk 0:00:12.7]} 40... e3 {[%clk 0:00:13.2]} 41. fxe3 {[%clk 0:00:12.5]} 41...
f3 {[%clk 0:00:13.3]} 42. Kd3 {[%clk 0:00:13.4]} 42... h4 {[%clk 0:00:12.8]} 43.
e4 {[%clk 0:00:13.2]} 43... f2 {[%clk 0:00:12.1]} 44. Ke2 {[%clk 0:00:13]} 1-0

[Event "*** SCC Grand Prix: Titled Tuesday Blitz"]
[Site "Chess.com"]
[Date "2020.08.11"]
[Round "4"]
[White "tigra"]
[Black "GMKrikor"]
[Result "1-0"]
[WhiteElo "2883"]
[BlackElo "2727"]
[TimeControl "180+1"]
[EndTime "10:39:54 PDT"]
[Termination "tigra won on time"]

1. e4 {[%clk 0:03:00.9]} 1... g6 {[%clk 0:02:59.7]} 2. d4 {[%clk 0:03:00.5]}
2... Bg7 {[%clk 0:03:00.6]} 3. Nc3 {[%clk 0:03:00.3]} 3... d6 {[%clk 0:03:01]}
4. Nf3 {[%clk 0:03:00.2]} 4... a6 {[%clk 0:02:59.3]} 5. a4 {[%clk 0:02:59.9]}
5... Nf6 {[%clk 0:02:58.9]} 6. Be2 {[%clk 0:03:00.3]} 6... O-O {[%clk
0:02:59.1]} 7. O-O {[%clk 0:03:00.6]} 7... Nc6 {[%clk 0:02:59.2]} 8. d5 {[%clk
0:03:00.5]} 8... Nb8 {[%clk 0:02:53.1]} 9. Be3 {[%clk 0:02:55]} 9... e6 {[%clk
0:02:38.6]} 10. dxe6 {[%clk 0:02:54.1]} 10... Bxe6 {[%clk 0:02:37.8]} 11. Nd4
{[%clk 0:02:52.4]} 11... Bd7 {[%clk 0:02:36.6]} 12. f4 {[%clk 0:02:49.5]} 12...
Nc6 {[%clk 0:02:33.7]} 13. Bf3 {[%clk 0:02:46.9]} 13... Nxd4 {[%clk 0:02:33.4]}
14. Bxd4 {[%clk 0:02:44.1]} 14... Bc6 {[%clk 0:02:33.3]} 15. Re1 {[%clk
0:02:40]} 15... Re8 {[%clk 0:02:32.5]} 16. a5 {[%clk 0:02:12]} 16... h5 {[%clk
0:02:12.9]} 17. h3 {[%clk 0:02:04.5]} 17... Nd7 {[%clk 0:01:52]} 18. Bxg7 {[%clk
0:01:48.4]} 18... Kxg7 {[%clk 0:01:52.9]} 19. Nd5 {[%clk 0:01:47.6]} 19... Bxd5
{[%clk 0:01:39.3]} 20. Qxd5 {[%clk 0:01:46.8]} 20... Rb8 {[%clk 0:01:11.7]} 21.
e5 {[%clk 0:01:39.3]} 21... Qh4 {[%clk 0:00:56.3]} 22. Qd4 {[%clk 0:01:25.3]}
22... Kg8 {[%clk 0:00:49.9]} 23. Kf1 {[%clk 0:01:12]} 23... Rxe5 {[%clk
0:00:36.5]} 24. Rxe5 {[%clk 0:01:03.5]} 24... Nxe5 {[%clk 0:00:33.8]} 25. Qa7
{[%clk 0:00:49.6]} 25... Nd7 {[%clk 0:00:26.9]} 26. Re1 {[%clk 0:00:39.3]} 26...
Qxf4 {[%clk 0:00:21.3]} 27. Kg1 {[%clk 0:00:32.5]} 27... Qb4 {[%clk 0:00:03.5]}
28. Re7 {[%clk 0:00:30.3]} 28... Qc5+ {[%clk 0:00:02]} 29. Qxc5 {[%clk
0:00:29.9]} 29... Nxc5 {[%clk 0:00:02.9]} 30. Rxc7 {[%clk 0:00:29.7]} 30... Ne6
{[%clk 0:00:02.9]} 31. Rxb7 {[%clk 0:00:29.7]} 31... Rc8 {[%clk 0:00:02.3]} 32.
c3 {[%clk 0:00:30]} 32... Rc5 {[%clk 0:00:02.9]} 33. b4 {[%clk 0:00:27.6]} 33...
Rxc3 {[%clk 0:00:03.1]} 34. b5 {[%clk 0:00:26.3]} 34... axb5 {[%clk 0:00:02.3]}
35. a6 {[%clk 0:00:26.6]} 35... Ra3 {[%clk 0:00:03.2]} 36. a7 {[%clk 0:00:27]}
36... Kg7 {[%clk 0:00:03.8]} 37. Rd7 {[%clk 0:00:16.5]} 37... Ra1+ {[%clk
0:00:04.3]} 38. Kf2 {[%clk 0:00:16.5]} 38... Nc5 {[%clk 0:00:04.9]} 39. Rc7
{[%clk 0:00:16.1]} 39... Ra2+ {[%clk 0:00:05.2]} 40. Ke3 {[%clk 0:00:16]} 40...
Ne6 {[%clk 0:00:05.6]} 41. Rd7 {[%clk 0:00:14.8]} 41... Nc5 {[%clk 0:00:05]} 42.
Rxf7+ {[%clk 0:00:13.7]} 42... Kxf7 {[%clk 0:00:04.9]} 43. Bd5+ {[%clk 0:00:14]}
1-0

[Event "*** SCC Grand Prix: Titled Tuesday Blitz"]
[Site "Chess.com"]
[Date "2020.08.11"]
[Round "4"]
[White "Carnivoras"]
[Black "Nafania1"]
[Result "1-0"]
[WhiteElo "2653"]
[BlackElo "2470"]
[TimeControl "180+1"]
[EndTime "10:39:55 PDT"]
[Termination "Carnivoras won by resignation"]

1. d4 {[%clk 0:03:00.9]} 1... Nf6 {[%clk 0:02:59.4]} 2. Nf3 {[%clk 0:03:00.9]}
2... e6 {[%clk 0:02:59.6]} 3. g3 {[%clk 0:03:01.6]} 3... d5 {[%clk 0:02:58.9]}
4. Bg2 {[%clk 0:03:01.9]} 4... Be7 {[%clk 0:02:59]} 5. O-O {[%clk 0:03:02.8]}
5... O-O {[%clk 0:02:59.3]} 6. c4 {[%clk 0:03:02.7]} 6... dxc4 {[%clk
0:02:59.8]} 7. Qc2 {[%clk 0:03:02.1]} 7... a6 {[%clk 0:03:00]} 8. Qxc4 {[%clk
0:03:02.4]} 8... b5 {[%clk 0:03:00.1]} 9. Qc2 {[%clk 0:03:03.1]} 9... Bb7 {[%clk
0:03:00.5]} 10. Bd2 {[%clk 0:03:03.7]} 10... Be4 {[%clk 0:03:00.1]} 11. Qc1
{[%clk 0:03:04]} 11... Bb7 {[%clk 0:03:00]} 12. e3 {[%clk 0:02:57.2]} 12... Qc8
{[%clk 0:02:45.6]} 13. b4 {[%clk 0:02:54.5]} 13... a5 {[%clk 0:02:35.6]} 14.
bxa5 {[%clk 0:02:54.5]} 14... Nc6 {[%clk 0:02:35.4]} 15. Nc3 {[%clk 0:02:51.6]}
15... b4 {[%clk 0:02:31.3]} 16. Na4 {[%clk 0:02:51.8]} 16... Nxa5 {[%clk
0:02:25.6]} 17. Nc5 {[%clk 0:02:50.5]} 17... Bd5 {[%clk 0:02:10.9]} 18. Bxb4
{[%clk 0:02:48.6]} 18... Nc6 {[%clk 0:02:05.4]} 19. a3 {[%clk 0:02:47.7]} 19...
Qb8 {[%clk 0:01:46.5]} 20. Rb1 {[%clk 0:02:27.4]} 20... Nxb4 {[%clk 0:01:41.2]}
21. axb4 {[%clk 0:02:26.6]} 21... Qb5 {[%clk 0:01:31.7]} 22. Ne5 {[%clk
0:02:21.2]} 22... Bxg2 {[%clk 0:01:28.7]} 23. Kxg2 {[%clk 0:02:21.7]} 23... Rfb8
{[%clk 0:01:21.1]} 24. Qc2 {[%clk 0:01:57.8]} 24... Ra3 {[%clk 0:01:12.4]} 25.
Rfc1 {[%clk 0:01:51.6]} 25... Bd6 {[%clk 0:01:10.6]} 26. Nf3 {[%clk 0:01:47]}
26... Rba8 {[%clk 0:01:06.8]} 27. h4 {[%clk 0:01:42.2]} 27... h6 {[%clk
0:01:06.3]} 28. Nd2 {[%clk 0:01:37.2]} 28... Nd5 {[%clk 0:01:02.9]} 29. Qc4
{[%clk 0:01:22.7]} 29... Qe8 {[%clk 0:00:49.3]} 30. Rb3 {[%clk 0:01:11.5]} 30...
Rxb3 {[%clk 0:00:41.6]} 31. Ndxb3 {[%clk 0:00:49.4]} 31... Rb8 {[%clk 0:00:41]}
32. Na6 {[%clk 0:00:44.7]} 32... Rb6 {[%clk 0:00:40.9]} 33. Nbc5 {[%clk
0:00:44.4]} 33... Qc6 {[%clk 0:00:38.3]} 34. e4 {[%clk 0:00:29.9]} 34... Nf6
{[%clk 0:00:38.2]} 35. Qd3 {[%clk 0:00:26.4]} 35... e5 {[%clk 0:00:35.9]} 36. d5
{[%clk 0:00:26.1]} 36... Qa8 {[%clk 0:00:35.7]} 37. Qc4 {[%clk 0:00:25]} 37...
Qa7 {[%clk 0:00:30]} 38. b5 {[%clk 0:00:24.5]} 38... Qa8 {[%clk 0:00:26.8]} 39.
Nd3 {[%clk 0:00:23.7]} 39... Nd7 {[%clk 0:00:25.2]} 40. Nxc7 {[%clk 0:00:23]}
40... Qa3 {[%clk 0:00:22.4]} 41. Na6 {[%clk 0:00:21.3]} 41... Nf6 {[%clk
0:00:20.5]} 42. Rc3 {[%clk 0:00:20.7]} 42... Qa1 {[%clk 0:00:19.1]} 43. Rc2
{[%clk 0:00:21.1]} 43... Qd4 {[%clk 0:00:18.7]} 44. Qxd4 {[%clk 0:00:20.9]}
44... exd4 {[%clk 0:00:19.1]} 45. e5 {[%clk 0:00:21.7]} 45... Nxd5 {[%clk
0:00:18.4]} 46. exd6 {[%clk 0:00:22]} 46... Rxd6 {[%clk 0:00:18.7]} 47. Rc6
{[%clk 0:00:21.5]} 47... Rd7 {[%clk 0:00:18.1]} 48. Nac5 {[%clk 0:00:20.4]}
48... Ra7 {[%clk 0:00:17.6]} 49. b6 {[%clk 0:00:20.7]} 49... Ra2 {[%clk
0:00:17.5]} 50. b7 {[%clk 0:00:21.1]} 50... Ne3+ {[%clk 0:00:16.5]} 51. Kf3
{[%clk 0:00:20.8]} 1-0

[Event "*** SCC Grand Prix: Titled Tuesday Blitz"]
[Site "Chess.com"]
[Date "2020.08.11"]
[Round "4"]
[White "MuhittinBuker"]
[Black "Karina_Ivanova"]
[Result "1-0"]
[WhiteElo "1992"]
[BlackElo "2217"]
[TimeControl "180+1"]
[EndTime "10:39:55 PDT"]
[Termination "MuhittinBuker won on time"]

1. c4 {[%clk 0:03:00.9]} 1... Nf6 {[%clk 0:02:56.6]} 2. Nf3 {[%clk 0:03:00.4]}
2... e6 {[%clk 0:02:54.2]} 3. Nc3 {[%clk 0:03:00.1]} 3... c5 {[%clk 0:02:53.5]}
4. g3 {[%clk 0:02:58.9]} 4... b6 {[%clk 0:02:47]} 5. Bg2 {[%clk 0:02:59.1]} 5...
Bb7 {[%clk 0:02:45.2]} 6. O-O {[%clk 0:02:58.5]} 6... Bd6 {[%clk 0:02:41.5]} 7.
d4 {[%clk 0:02:58.1]} 7... cxd4 {[%clk 0:02:40.1]} 8. Nxd4 {[%clk 0:02:54.8]}
8... Bxg2 {[%clk 0:02:38.9]} 9. Kxg2 {[%clk 0:02:54.5]} 9... O-O {[%clk
0:02:35.6]} 10. b3 {[%clk 0:02:52.6]} 10... a6 {[%clk 0:02:28.8]} 11. Bb2 {[%clk
0:02:52.1]} 11... Qc7 {[%clk 0:02:22]} 12. e4 {[%clk 0:02:51.6]} 12... Be7
{[%clk 0:02:19.3]} 13. Qe2 {[%clk 0:02:48.3]} 13... d6 {[%clk 0:02:18.4]} 14.
Rfd1 {[%clk 0:02:46.6]} 14... Nbd7 {[%clk 0:02:17.4]} 15. Rac1 {[%clk
0:02:45.5]} 15... Rac8 {[%clk 0:02:13.8]} 16. h3 {[%clk 0:02:45.1]} 16... Rfd8
{[%clk 0:02:11.9]} 17. Qe3 {[%clk 0:02:34.5]} 17... Qb7 {[%clk 0:02:10.4]} 18.
Kh2 {[%clk 0:02:32.3]} 18... Nc5 {[%clk 0:01:42.6]} 19. Re1 {[%clk 0:02:18]}
19... b5 {[%clk 0:01:25.4]} 20. cxb5 {[%clk 0:02:14.1]} 20... axb5 {[%clk
0:01:24.2]} 21. Ndxb5 {[%clk 0:02:13.1]} 21... Ncxe4 {[%clk 0:01:20.3]} 22. Nxe4
{[%clk 0:02:08]} 22... Nxe4 {[%clk 0:01:17.7]} 23. Rxc8 {[%clk 0:02:04.3]} 23...
Rxc8 {[%clk 0:01:16.7]} 24. a4 {[%clk 0:01:57.5]} 24... d5 {[%clk 0:01:11.1]}
25. Re2 {[%clk 0:01:41.6]} 25... Rc6 {[%clk 0:00:41.9]} 26. h4 {[%clk
0:01:35.4]} 26... Bc5 {[%clk 0:00:29.2]} 27. Qf3 {[%clk 0:01:29.7]} 27... Qc8
{[%clk 0:00:21.3]} 28. Qg4 {[%clk 0:01:21.9]} 28... Qf8 {[%clk 0:00:19.1]} 29.
f3 {[%clk 0:01:14.2]} 29... Nf2 {[%clk 0:00:12.6]} 30. Qg5 {[%clk 0:00:41.4]}
30... Nd3 {[%clk 0:00:11.2]} 31. Ba1 {[%clk 0:00:24.3]} 31... h6 {[%clk
0:00:09.7]} 32. Qh5 {[%clk 0:00:16.1]} 32... Be7 {[%clk 0:00:05.6]} 33. Nd4
{[%clk 0:00:13.1]} 33... Rc1 {[%clk 0:00:04.2]} 34. Bb2 {[%clk 0:00:09.2]} 34...
Nxb2 {[%clk 0:00:03.9]} 35. Rxb2 {[%clk 0:00:08.7]} 35... Bf6 {[%clk 0:00:04.8]}
36. Qg4 {[%clk 0:00:04.5]} 36... Qc5 {[%clk 0:00:02.6]} 37. Rd2 {[%clk
0:00:03.7]} 1-0

[Event "*** SCC Grand Prix: Titled Tuesday Blitz"]
[Site "Chess.com"]
[Date "2020.08.11"]
[Round "4"]
[White "Alexander_Donchenko"]
[Black "TranJMinh"]
[Result "0-1"]
[WhiteElo "2658"]
[BlackElo "2842"]
[TimeControl "180+1"]
[EndTime "10:39:56 PDT"]
[Termination "TranJMinh won on time"]

1. Nf3 {[%clk 0:02:54]} 1... Nf6 {[%clk 0:02:59.7]} 2. g3 {[%clk 0:02:54.1]}
2... d5 {[%clk 0:02:59.4]} 3. Bg2 {[%clk 0:02:54.4]} 3... c6 {[%clk 0:02:59.7]}
4. O-O {[%clk 0:02:52.5]} 4... Bf5 {[%clk 0:02:59.4]} 5. d3 {[%clk 0:02:52.1]}
5... e6 {[%clk 0:02:59.6]} 6. Nh4 {[%clk 0:02:51.5]} 6... Bg4 {[%clk 0:02:59]}
7. h3 {[%clk 0:02:51.9]} 7... Bh5 {[%clk 0:02:59.6]} 8. Qe1 {[%clk 0:02:52.4]}
8... Nbd7 {[%clk 0:02:43.5]} 9. e4 {[%clk 0:02:45.7]} 9... dxe4 {[%clk
0:02:25.4]} 10. dxe4 {[%clk 0:02:46.6]} 10... Bc5 {[%clk 0:02:25.8]} 11. Kh2
{[%clk 0:02:44.3]} 11... O-O {[%clk 0:02:19.7]} 12. f4 {[%clk 0:02:41.9]} 12...
Qc7 {[%clk 0:02:03.1]} 13. Nd2 {[%clk 0:02:32.6]} 13... Be7 {[%clk 0:01:53.8]}
14. c3 {[%clk 0:02:14.1]} 14... Nc5 {[%clk 0:01:51.6]} 15. g4 {[%clk 0:02:03.9]}
15... Bg6 {[%clk 0:01:48.4]} 16. Nxg6 {[%clk 0:01:57.5]} 16... hxg6 {[%clk
0:01:47.8]} 17. e5 {[%clk 0:01:56.1]} 17... Nd5 {[%clk 0:01:45.6]} 18. Qg3
{[%clk 0:01:48.6]} 18... Rad8 {[%clk 0:01:34]} 19. h4 {[%clk 0:01:39.5]} 19...
f6 {[%clk 0:01:24.4]} 20. Nf3 {[%clk 0:01:15.3]} 20... Ne4 {[%clk 0:00:51.6]}
21. Qe1 {[%clk 0:01:13.1]} 21... Nc5 {[%clk 0:00:45.3]} 22. h5 {[%clk
0:01:05.4]} 22... g5 {[%clk 0:00:42.3]} 23. fxg5 {[%clk 0:00:54.2]} 23... fxe5
{[%clk 0:00:42.5]} 24. Kh1 {[%clk 0:00:44.6]} 24... e4 {[%clk 0:00:40.3]} 25.
Nd4 {[%clk 0:00:42.6]} 25... Rxf1+ {[%clk 0:00:34.9]} 26. Bxf1 {[%clk
0:00:37.5]} 26... Qe5 {[%clk 0:00:32.7]} 27. b4 {[%clk 0:00:34.3]} 27... Nd3
{[%clk 0:00:32.1]} 28. Bxd3 {[%clk 0:00:33.9]} 28... Bd6 {[%clk 0:00:28.2]} 29.
Nf3 {[%clk 0:00:15.9]} 29... exf3 {[%clk 0:00:24.7]} 30. Qxe5 {[%clk 0:00:16.5]}
30... Bxe5 {[%clk 0:00:25.6]} 31. Be4 {[%clk 0:00:12]} 31... Bxc3 {[%clk
0:00:21.4]} 32. Rb1 {[%clk 0:00:11.5]} 32... f2 {[%clk 0:00:22]} 33. Kg2 {[%clk
0:00:11.4]} 33... Rf8 {[%clk 0:00:20.8]} 34. Kf1 {[%clk 0:00:07.9]} 34... Bd4
{[%clk 0:00:20.5]} 35. Rb3 {[%clk 0:00:04.7]} 35... Nc3 {[%clk 0:00:20.3]} 36.
Bd3 {[%clk 0:00:03.2]} 36... e5 {[%clk 0:00:20.8]} 37. Bc4+ {[%clk 0:00:02.4]}
37... Nd5 {[%clk 0:00:20.6]} 38. Bd2 {[%clk 0:00:02.2]} 38... a6 {[%clk
0:00:20.1]} 39. a4 {[%clk 0:00:02.1]} 39... b5 {[%clk 0:00:19.7]} 40. axb5
{[%clk 0:00:03]} 40... axb5 {[%clk 0:00:20.6]} 41. Bd3 {[%clk 0:00:03.7]} 41...
Ra8 {[%clk 0:00:20]} 42. Rb1 {[%clk 0:00:02.5]} 42... Ra3 {[%clk 0:00:18.5]} 43.
Be4 {[%clk 0:00:02.2]} 43... Rg3 {[%clk 0:00:19.1]} 44. Ke2 {[%clk 0:00:01.8]}
44... Rxg4 {[%clk 0:00:15.4]} 0-1